bitfinex-derivatives/quotes_ETHF0:USTF0_20241007
["timestamp","ask_amount","ask_price","bid_price","bid_amount"]
[1728271637996,3.2078,2505.8,2505.7,0.27937]
[1728271638791,3.2078,2505.8,2505.7,0.4152]
[1728271640790,3.2078,2505.8,2505.7,2.13457]
[1728271641790,3.6262,2506.1,2505.7,1.8552]
[1728271641993,0.27934,2506.0,2505.7,1.8552]
[1728271642202,0.27934,2506.0,2505.7,0.4152]
[1728271645296,3.2078,2505.8,2505.7,0.4152]
[1728271646400,3.2078,2505.8,2505.7,2.13457]
[1728271648804,3.2078,2505.8,2505.7,1.8552]
[1728271649001,3.2078,2505.8,2505.7,2.13457]
[1728271651607,0.69773,2506.1,2505.7,2.13457]
[1728271652005,3.2078,2505.9,2505.7,1.8552]
[1728271652505,3.2078,2505.9,2505.7,2.13457]
[1728271652897,3.2078,2505.9,2505.7,1.8552]
[1728271654108,3.2078,2505.9,2505.8,0.27936]
[1728271654313,3.2078,2505.9,2505.8,1.71936]
[1728271654706,3.2078,2505.9,2505.8,1.44]
[1728271655810,3.2078,2505.9,2505.8,1.71936]
[1728271666024,3.2078,2505.9,2505.8,1.44]
[1728271666329,3.2078,2505.9,2505.8,1.71936]
[1728271666927,0.69971,2506.3,2505.9,0.27934]
[1728271667129,3.2078,2506.0,2505.9,0.27934]
[1728271667827,3.2078,2506.0,2505.9,0.69414]
[1728271668219,3.2078,2506.3,2505.9,0.4148]
[1728271668424,3.2078,2506.3,2506.2,1.71931]
[1728271670621,0.4007,2506.6,2506.2,1.71931]
[1728271670622,0.4007,2506.6,2506.3,0.2793]
[1728271670827,3.2078,2506.4,2506.3,0.6678]
[1728271673026,0.4007,2506.6,2506.3,0.6678]
[1728271673329,3.2078,2506.4,2506.3,0.6678]
[1728271673833,4.6478,2506.4,2506.0,1.6556]
[1728271674027,2.6547,2506.3,2506.0,0.27933]
[1728271674335,1.2147,2506.3,2506.0,1.71933]
[1728271674825,1.2147,2506.3,2506.0,1.44]
[1728271675033,1.2147,2506.3,2506.1,0.27933]
[1728271675227,1.2147,2506.3,2506.0,1.44]
[1728271675429,1.49401,2506.3,2506.0,1.44]
[1728271676228,1.2147,2506.3,2506.0,1.44]
[1728271676436,1.2147,2506.3,2506.0,1.71933]
[1728271680136,3.2078,2506.2,2506.0,1.71933]
[1728271692453,3.2078,2506.2,2506.1,0.27933]
[1728271695055,3.2078,2506.2,2506.0,1.44]
[1728271695353,3.2078,2506.2,2506.1,0.27933]
[1728271695747,3.2078,2506.2,2506.0,1.71933]
[1728271696850,3.2078,2506.2,2506.1,0.27933]
[1728271698157,3.2078,2506.2,2506.1,0.68743]
[1728271707061,0.4005,2506.3,2506.1,0.68743]
[1728271707256,3.6083,2506.3,2506.1,0.68743]
[1728271707961,0.4005,2506.3,2506.1,0.68743]
[1728271708154,3.6083,2506.3,2506.1,0.68743]
[1728271708660,0.4005,2506.3,2506.1,0.68743]
[1728271709465,3.6083,2506.3,2506.1,0.68743]
[1728271710061,3.6083,2506.3,2506.1,0.4081]
[1728271711855,3.6083,2506.3,2506.1,0.68743]
[1728271712058,3.6083,2506.3,2506.1,0.4081]
[1728271714166,0.4005,2506.3,2506.1,0.4081]
[1728271714369,3.6083,2506.3,2506.1,0.4081]
[1728271717660,0.4005,2506.3,2506.1,0.4081]
[1728271717858,3.6083,2506.3,2506.1,0.4081]
[1728271720667,3.9904,2506.2,2505.6,1.0466722]
[1728271720866,3.2078,2506.0,2505.7,0.4026]
[1728271721068,3.6083,2506.3,2505.8,1.44]
[1728271721463,3.6083,2506.3,2506.1,0.27933]
[1728271721665,3.6083,2506.3,2506.2,1.2181]
[1728271722874,3.88761,2506.3,2506.2,1.2181]
[1728271723673,3.88761,2506.3,2506.2,0.8155]
[1728271723971,3.88761,2506.3,2506.0,0.27934]
[1728271724570,3.88761,2506.3,2505.9,1.45044]
[1728271724571,0.27932,2506.2,2505.9,1.45044]
[1728271724763,0.4145,2506.2,2505.9,1.45044]
[1728271725676,0.4145,2506.2,2506.0,0.27934]
[1728271726876,0.4145,2506.2,2505.9,1.45044]
[1728271727385,0.69382,2506.2,2505.9,1.1711]
[1728271729381,0.4145,2506.2,2505.9,1.45044]
[1728271730281,3.6083,2506.3,2506.0,0.27933]
[1728271732674,3.88761,2506.3,2506.0,0.27933]
[1728271733378,3.6083,2506.3,2506.0,0.27933]
[1728271733979,3.88761,2506.3,2506.0,0.27933]
[1728271734476,3.6083,2506.3,2506.0,0.27933]
[1728271734982,3.6083,2506.3,2505.9,1.1711]
[1728271735172,3.6083,2506.3,2506.0,0.27933]
[1728271736282,3.88761,2506.3,2505.9,1.45045]
[1728271736482,0.67981,2506.3,2505.9,1.45045]
[1728271736678,3.2078,2506.2,2505.9,1.45045]
[1728271738279,3.48712,2506.2,2505.9,1.1711]
[1728271741088,3.2078,2506.2,2506.0,0.27933]
[1728271741288,3.2078,2506.2,2506.0,0.27934]
[1728271741480,3.2078,2506.2,2505.9,1.45044]
[1728271742581,3.2078,2506.2,2506.0,0.27933]
[1728271743680,3.2078,2506.2,2505.9,1.45044]
[1728271743883,3.2078,2506.2,2506.0,0.27934]
[1728271744688,3.2078,2506.2,2506.1,0.27933]
[1728271744893,3.2078,2506.2,2505.9,1.45045]
[1728271745288,3.6142,2506.2,2505.9,1.45045]
[1728271745483,3.89352,2506.2,2505.9,1.1711]
[1728271745792,3.6142,2506.2,2505.9,1.45045]
[1728271745987,3.89352,2506.2,2505.9,1.1711]
[1728271746190,3.6142,2506.2,2505.9,1.45045]
[1728271747083,3.6142,2506.2,2505.9,2.89045]
[1728271747584,0.4064,2506.2,2505.9,2.89045]
[1728271747783,3.6142,2506.2,2505.9,2.89045]
[1728271754299,3.6142,2506.2,2506.0,0.53188558]
[1728271754500,3.6142,2506.2,2505.9,2.89045]
[1728271754694,3.6142,2506.2,2506.0,0.53189264]
[1728271754997,3.6142,2506.2,2505.9,2.89045]
[1728271757304,3.89352,2506.2,2505.9,2.89045]
[1728271757598,3.89352,2506.2,2505.9,2.6111]
[1728271757986,3.6142,2506.2,2505.9,2.89045]
[1728271758390,3.89352,2506.2,2505.9,2.89045]
[1728271758794,3.6142,2506.2,2505.9,2.89045]
[1728271759488,3.6142,2506.2,2505.9,1.45045]
[1728271759692,3.89352,2506.2,2505.9,1.45045]
[1728271759997,4.30042,2506.2,2505.9,1.45045]
[1728271760196,4.0211,2506.2,2505.9,1.45045]
[1728271761193,4.30042,2506.2,2505.9,1.45045]
[1728271761500,4.0211,2506.2,2505.9,1.45045]
[1728271761697,4.30042,2506.2,2505.9,1.45045]
[1728271762595,4.0211,2506.2,2505.9,1.45045]
[1728271762903,4.30042,2506.2,2505.9,1.45045]
[1728271763594,4.0211,2506.2,2505.9,1.45045]
[1728271765301,4.0211,2506.2,2506.0,0.53243518]
[1728271765602,4.0211,2506.2,2505.9,1.45045]
[1728271766298,4.0211,2506.2,2506.0,0.53247391]
[1728271766503,4.0211,2506.2,2505.9,1.45045]
[1728271767004,4.30042,2506.2,2506.0,0.53246534]
[1728271767203,4.30042,2506.2,2505.9,1.1711]
[1728271767399,4.30042,2506.2,2506.0,0.53246935]
[1728271767605,4.0211,2506.2,2505.9,1.45045]
[1728271768092,4.30042,2506.2,2506.0,0.5324699]
[1728271768291,4.30042,2506.2,2505.9,1.45045]
[1728271768493,4.30042,2506.2,2506.0,0.53246479]
[1728271768694,4.0211,2506.2,2505.9,1.45045]
[1728271769101,4.0211,2506.2,2506.0,0.53246214]
[1728271769302,4.0211,2506.2,2505.9,1.45045]
[1728271769504,4.0211,2506.2,2506.0,0.53240825]
[1728271769700,4.0211,2506.2,2505.9,1.45045]
[1728271769898,4.0211,2506.2,2506.0,0.53234593]
[1728271770198,4.0211,2506.2,2505.9,1.45045]
[1728271770397,4.0211,2506.2,2506.0,0.53230815]
[1728271770598,4.0211,2506.2,2505.9,1.45045]
[1728271770801,4.0211,2506.2,2506.0,0.5323188]
[1728271770995,4.0211,2506.2,2505.9,1.45045]
[1728271771197,4.0211,2506.2,2506.0,0.53233495]
[1728271771399,4.0211,2506.2,2505.9,1.45045]
[1728271771595,4.0211,2506.2,2506.0,0.53234076]
[1728271771800,4.0211,2506.2,2505.9,1.45045]
[1728271771995,4.0211,2506.2,2506.0,0.53234137]
[1728271772201,4.0211,2506.2,2505.9,1.45045]
[1728271773806,3.6142,2506.2,2506.0,0.27934]
[1728271774199,3.6142,2506.2,2505.9,1.45044]
[1728271775305,3.6142,2506.2,2506.0,0.5322764]
[1728271775510,3.6142,2506.2,2505.9,1.45044]
[1728271775810,3.6142,2506.2,2506.0,0.53228016]
[1728271776108,3.6142,2506.2,2505.9,1.45044]
[1728271776303,3.6142,2506.2,2506.0,0.53228597]
[1728271776504,3.2078,2506.2,2505.9,1.45044]
[1728271776805,3.2078,2506.2,2506.0,0.5322861]
[1728271777010,3.2078,2506.2,2505.9,1.45044]
[1728271777208,3.2078,2506.2,2506.0,0.53232367]
[1728271777408,3.2078,2506.2,2505.9,1.45044]
[1728271777608,3.2078,2506.2,2506.0,0.53233905]
[1728271777817,3.2078,2506.2,2505.9,1.45044]
[1728271784123,0.3876,2506.3,2505.9,1.1711]
[1728271784323,0.3876,2506.3,2506.0,1.71933]
[1728271784324,3.2078,2506.2,2506.0,1.71933]
[1728271784525,3.2078,2506.2,2506.1,0.27933]
[1728271784931,3.2078,2506.2,2506.0,1.44]
[1728271785126,3.2078,2506.2,2506.1,0.27933]
[1728271785932,3.2078,2506.2,2506.0,1.71933]
[1728271787728,3.2078,2506.2,2506.1,0.27933]
[1728271788131,3.2078,2506.2,2506.0,1.71933]
[1728271788831,0.3876,2506.3,2506.0,1.71933]
[1728271789331,3.2078,2506.5,2506.3,0.2793]
[1728271789530,3.2078,2506.5,2506.4,1.208]
[1728271790927,0.3997,2506.7,2506.4,1.208]
[1728271791338,3.2078,2506.9,2506.6,1.71927]
[1728271791526,3.2078,2506.9,2506.8,1.44]
[1728271791925,3.2078,2506.9,2506.7,0.4193]
[1728271792130,3.2078,2506.9,2506.8,2.2581]
[1728271792828,0.4017,2507.0,2506.8,2.2581]
[1728271795136,0.4017,2507.0,2506.8,2.53735]
[1728271796227,0.4017,2507.0,2506.8,2.2581]
[1728271796432,1.44,2507.2,2506.9,0.27923]
[1728271796632,0.4206,2507.2,2507.0,0.4033]
[1728271796942,3.2078,2507.3,2507.1,0.27922]
[1728271797139,3.2078,2507.3,2507.0,0.4033]
[1728271797140,3.2078,2507.3,2507.2,0.8306]
[1728271797332,3.2078,2507.3,2507.2,1.1098]
[1728271799347,3.2078,2507.3,2507.2,0.8306]
[1728271806939,1.2463,2507.5,2507.2,0.8306]
[1728271806940,0.4206,2507.5,2507.2,2.5498]
[1728271807143,0.4206,2507.5,2507.3,1.44]
[1728271807344,0.4206,2507.5,2507.3,2.11039]
[1728271807547,3.2078,2507.8,2507.3,2.11039]
[1728271807850,0.3822,2507.7,2507.5,1.44]
[1728271808144,0.3822,2507.7,2507.6,0.7661]
[1728271808446,0.3822,2507.7,2507.6,1.1859]
[1728271808746,3.2078,2507.8,2507.6,1.1859]
[1728271808938,0.27911,2508.1,2507.7,1.44]
[1728271808939,3.6258,2508.1,2507.7,1.44]
[1728271810050,3.6258,2508.1,2507.8,1.44]
[1728271812753,3.6258,2508.1,2508.0,1.44]
[1728271813746,3.2078,2508.1,2508.0,1.44]
[1728271813940,3.2078,2508.4,2508.0,1.44]
[1728271814148,3.2078,2508.4,2508.3,1.44]
[1728271817449,3.2078,2508.4,2508.3,5.4264]
[1728271817952,0.7865,2508.8,2508.4,0.27906]
[1728271818152,3.627,2509.0,2508.7,1.44]
[1728271818453,3.2078,2509.0,2508.9,1.44]
[1728271818951,3.2078,2509.0,2508.9,1.8495]
[1728271819950,3.2078,2509.0,2508.3,0.43411381]
[1728271819951,14.6334,2509.0,2507.7,3.2078]
[1728271820253,0.4156,2509.2,2508.1,1.44]
[1728271820254,0.27908,2508.3,2508.1,1.44]
[1728271820455,3.48688,2508.3,2508.1,1.44]
[1728271820648,0.4186,2508.2,2508.1,1.44]
[1728271825552,5.8458,2508.2,2507.8,0.4027]
[1728271825773,5.8458,2508.2,2507.5,3.3008]
[1728271825774,1.44,2508.0,2507.6,0.8046]
[1728271826053,1.44,2508.0,2507.2,3.66132897]
[1728271826054,1.44,2507.7,2507.2,0.093]
[1728271826262,0.66617,2507.6,2507.2,1.44]
[1728271826651,0.387,2507.6,2507.2,1.7192]
[1728271827152,0.387,2507.6,2507.3,1.44]
[1728271827458,0.387,2507.6,2507.5,1.44]
[1728271828053,0.387,2507.6,2507.4,1.44]
[1728271833455,0.387,2507.6,2507.5,0.3872]
[1728271833658,6.387,2507.6,2507.1,0.3896]
[1728271833858,0.2792,2507.3,2507.1,0.3896]
[1728271834056,0.4039,2507.2,2507.1,0.3896]
[1728271844968,0.4039,2507.2,2506.8,0.3872]
[1728271844969,1.8439,2507.2,2506.8,0.3872]
[1728271845264,3.2078,2507.0,2506.8,0.3872]
[1728271846469,3.2078,2507.0,2506.7,0.4205]
[1728271846868,3.48703,2507.0,2506.7,0.4205]
[1728271847062,3.2078,2507.0,2506.7,0.4205]
[1728271847463,3.2078,2507.0,2506.7,0.69976]
[1728271848372,1.71925,2506.8,2506.4,0.68269]
[1728271848570,1.71925,2506.8,2506.4,0.8052]
[1728271848571,3.6001,2506.7,2506.4,0.8052]
[1728271848868,1.44,2506.6,2506.4,0.8052]
[1728271849778,1.71927,2506.6,2506.4,0.8052]
[1728271850270,1.71927,2506.6,2506.3,3.2078]
[1728271850271,1.71929,2506.5,2506.3,3.2078]
[1728271850477,0.27929,2506.5,2506.3,3.2078]
[1728271850664,0.27929,2506.4,2506.3,3.2078]
[1728271851870,4.26889,2506.4,2506.3,3.2078]
[1728271852859,10.58669,2506.4,2506.1,1.09743]
[1728271853061,0.4125,2506.3,2506.1,0.8181]
[1728271853467,0.4125,2506.3,2506.2,0.27932]
[1728271853970,0.4125,2506.3,2506.1,1.09742]
[1728271855276,0.4125,2506.3,2506.2,0.27932]
[1728271855574,3.2078,2506.4,2506.2,0.27932]
[1728271855964,3.2078,2506.4,2506.1,1.09742]
[1728271857869,0.7996,2506.7,2506.4,0.27929]
[1728271858069,0.7996,2506.7,2506.6,0.27927]
[1728271858266,0.4,2506.7,2506.6,0.27927]
[1728271860372,0.4,2506.7,2506.6,4.26887]
[1728271861479,3.2078,2507.0,2506.7,0.27925]
[1728271862078,3.2078,2507.0,2506.6,0.27926]
[1728271862269,3.2078,2507.0,2506.5,3.11]
[1728271862469,3.2078,2507.0,2506.4,3.64851859]
[1728271862470,3.2078,2507.0,2506.8,0.27925]
[1728271862671,3.2078,2507.0,2506.9,3.38924]
[1728271863778,3.2078,2507.0,2506.7,3.11]
[1728271863975,3.2078,2507.0,2506.8,0.27925]
[1728271864277,3.2078,2507.0,2506.7,3.38925]
[1728271864871,3.2078,2507.0,2506.8,0.27924]
[1728271865669,3.2078,2507.0,2506.7,3.11]
[1728271865873,3.2078,2507.0,2506.7,3.38925]
[1728271866272,3.2078,2507.0,2506.7,0.27925]
[1728271868579,3.48703,2507.0,2506.6,0.27927]
[1728271869081,3.48703,2507.0,2506.3,0.44231845]
[1728271869082,3.2078,2507.0,2506.3,3.11]
[1728271869276,0.27925,2506.8,2506.4,0.27929]
[1728271869685,3.2078,2507.0,2506.3,3.11]
[1728271869985,0.27925,2506.8,2506.3,3.11]
[1728271870184,0.27925,2506.8,2506.4,0.27929]
[1728271870986,3.2078,2507.0,2506.3,3.11]
[1728271871183,0.27924,2506.9,2506.5,0.27927]
[1728271871574,3.48703,2507.0,2506.6,0.27926]
[1728271872089,3.48703,2507.0,2506.5,3.38928]
[1728271873285,3.2078,2507.0,2506.6,0.27926]
[1728271873586,3.2078,2507.0,2506.6,0.27927]
[1728271873587,3.48703,2507.0,2506.6,0.27927]
[1728271874578,3.2078,2507.0,2506.7,3.11]
[1728271874783,3.2078,2507.0,2506.7,3.38925]
[1728271877587,3.2078,2507.1,2506.7,3.38925]
[1728271877991,3.48702,2507.1,2506.7,3.38925]
[1728271878887,3.2078,2507.1,2506.7,3.38925]
[1728271879188,3.2078,2507.1,2506.7,3.11]
[1728271879383,3.48702,2507.1,2506.7,3.11]
[1728271880396,3.48702,2507.1,2506.7,1.71926]
[1728271880690,3.2078,2507.1,2506.7,1.71926]
[1728271881082,3.48702,2507.1,2506.7,1.71926]
[1728271881391,3.48702,2507.1,2506.7,1.44]
[1728271883585,0.27923,2507.0,2506.7,1.44]
[1728271883792,3.48702,2507.1,2506.7,1.44]
[1728271884593,4.6478,2507.0,2506.4,3.2078]
[1728271884892,1.71926,2506.7,2506.4,3.2078]
[1728271885191,1.44,2506.6,2506.1,1.49032]
[1728271885393,4.6478,2506.7,2506.2,1.44]
[1728271885689,4.92707,2506.7,2506.2,1.44]
[1728271885894,4.92707,2506.7,2506.2,1.71931]
[1728271886590,4.92707,2506.7,2506.2,0.27931]
[1728271886591,3.48707,2506.7,2506.2,0.27931]
[1728271886793,3.48707,2506.7,2506.1,3.38932]
[1728271886990,0.27928,2506.6,2506.1,3.38932]
[1728271888294,0.27929,2506.5,2506.0,1.49033]
[1728271888995,6.3178,2506.7,2506.0,0.27933]
[1728271889191,0.27932,2506.2,2505.8,3.2078]
[1728271891695,3.11,2506.3,2505.8,3.2078]
[1728271891696,3.38931,2506.3,2505.8,3.2078]
[1728271891894,3.38931,2506.3,2505.8,3.48716]
[1728271892085,3.38931,2506.3,2505.8,3.2078]
[1728271892288,0.27932,2506.2,2505.8,3.2078]
[1728271892488,0.27934,2506.0,2505.6,5.397]
[1728271892690,0.27934,2506.0,2505.6,1.207]
[1728271892891,6.3178,2506.1,2505.5,3.2078]
[1728271893289,0.27934,2506.0,2505.5,3.48719]
[1728271893692,0.27935,2506.0,2505.5,3.2078]
[1728271894084,0.27934,2506.0,2505.5,3.2078]
[1728271894397,6.3178,2506.1,2505.5,3.2078]
[1728271894600,6.3178,2506.1,2505.5,3.48719]
[1728271894601,0.27934,2506.0,2505.5,3.48719]
[1728271894891,6.3178,2506.1,2505.6,0.27938]
[1728271894892,6.59713,2506.1,2505.6,0.27938]
[1728271895091,6.59713,2506.1,2505.6,1.49808]
[1728271895291,0.27932,2506.2,2505.7,0.27937]
[1728271895496,3.2078,2506.1,2505.7,0.27937]
[1728271896487,3.11,2505.9,2505.6,1.2187]
[1728271896686,3.2078,2505.8,2505.6,1.2187]
[1728271896887,3.48717,2505.8,2505.6,1.2187]
[1728271897096,7.47837,2505.8,2505.6,1.2187]
[1728271897787,7.199,2505.8,2505.6,1.2187]
[1728271898196,7.47837,2505.8,2505.6,1.2187]
[1728271898799,0.27937,2505.7,2505.6,1.2187]
[1728271898990,7.47837,2505.8,2505.6,1.2187]
[1728271900094,3.48717,2505.8,2505.6,1.2187]
[1728271901190,3.2078,2505.8,2505.1,4.19]
[1728271901503,3.2078,2505.8,2505.3,0.27941]
[1728271901504,0.27938,2505.7,2505.3,0.27941]
[1728271902096,3.2078,2505.8,2505.1,4.19]
[1728271902404,0.27938,2505.7,2505.2,0.27942]
[1728271904499,3.11,2505.7,2505.0,3.2078]
[1728271904695,6.5972,2505.5,2505.0,3.48724]
[1728271905310,0.27941,2505.4,2505.0,3.2078]
[1728271905810,6.3178,2505.5,2505.2,0.27943]
[1728271906107,6.3178,2505.5,2505.0,3.2078]
[1728271906108,6.3178,2505.5,2505.1,0.27943]
[1728271906506,6.3178,2505.5,2505.2,0.27942]
[1728271906901,6.3178,2505.5,2504.8,3.11]
[1728271907304,6.3178,2505.5,2504.7,4.86443814]
[1728271907305,3.48717,2505.8,2505.3,0.27941]
[1728271907504,3.2078,2505.8,2505.4,0.2794]
[1728271908401,3.2078,2505.8,2505.2,3.11]
[1728271908602,3.48716,2505.8,2505.3,0.27941]
[1728271911012,3.2078,2505.8,2505.3,0.27941]
[1728271911212,0.27937,2505.7,2505.3,0.27941]
[1728271911515,3.2078,2505.8,2505.3,0.27941]
[1728271911723,3.48717,2505.8,2505.3,0.27941]
[1728271913225,0.27937,2505.7,2505.3,0.27941]
[1728271913923,0.27937,2505.7,2505.2,3.38942]
[1728271915718,0.27937,2505.7,2505.3,0.27942]
[1728271916420,1.71937,2505.7,2505.3,0.27942]
[1728271916626,1.44,2505.7,2505.2,1.44]
[1728271916916,1.44,2505.7,2505.2,1.71942]
[1728271917116,1.71938,2505.7,2505.2,1.71942]
[1728271917423,1.44,2505.7,2505.2,1.44]
[1728271917621,1.44,2505.7,2505.3,0.27942]
[1728271918121,1.71938,2505.7,2505.2,1.71942]
[1728271919213,0.27938,2505.6,2505.2,1.71942]
[1728271920924,1.44,2505.7,2505.2,1.44]
[1728271921221,3.2078,2505.8,2505.5,1.44]
[1728271921523,3.2078,2505.8,2505.5,1.71939]
[1728271921723,3.2078,2505.8,2505.5,1.44]
[1728271922523,3.48716,2505.8,2505.5,1.44]
[1728271923826,3.2078,2505.8,2505.5,1.44]
[1728271924128,3.48716,2505.8,2505.5,1.44]
[1728271925129,0.27936,2505.8,2505.5,1.44]
[1728271926726,3.2078,2505.9,2505.5,1.44]
[1728271926925,3.48716,2505.9,2505.5,1.44]
[1728271928417,3.2078,2505.9,2505.5,1.44]
[1728271928727,0.27933,2506.1,2505.7,1.44]
[1728271928933,1.44,2506.2,2505.7,1.44]
[1728271929128,0.27933,2506.1,2505.7,1.44]
[1728271929423,1.71933,2506.2,2505.7,1.71937]
[1728271931425,0.27933,2506.1,2505.7,1.71937]
[1728271931822,1.44,2506.2,2505.7,1.71937]
[1728271932022,1.71933,2506.2,2505.7,1.71937]
[1728271932330,0.27933,2506.1,2505.8,1.44]
[1728271932928,1.71933,2506.2,2505.8,1.44]
[1728271933535,0.27933,2506.1,2505.8,1.44]
[1728271934030,0.27932,2506.2,2505.8,1.44]
[1728271935725,0.27932,2506.2,2505.9,0.53138583]
[1728271935925,0.27932,2506.2,2505.8,1.44]
[1728271937026,0.27932,2506.2,2505.8,1.71936]
[1728271937225,3.5798,2506.6,2506.1,1.44]
[1728271937426,0.27925,2506.8,2506.5,1.44]
[1728271937734,0.27926,2506.8,2506.5,1.44]
[1728271938338,0.27926,2506.8,2506.3,0.2793]
[1728271938339,0.27927,2506.6,2506.3,1.44]
[1728271938537,0.27927,2506.6,2506.2,3.2078]
[1728271938729,1.7193,2506.4,2505.9,5.90935]
[1728271938930,1.44,2506.1,2505.8,1.203]
[1728271939324,1.71933,2506.1,2505.8,1.203]
[1728271939635,1.71933,2506.1,2505.7,1.44]
[1728271939828,1.44,2506.1,2505.7,1.44]
[1728271940023,1.44,2506.1,2505.8,0.27936]
[1728271940436,6.59711,2506.3,2505.8,0.27936]
[1728271941438,0.27932,2506.2,2505.7,0.27937]
[1728271941632,6.59711,2506.3,2505.8,0.27936]
[1728271942939,6.3178,2506.3,2505.9,0.27934]
[1728271943135,6.3178,2506.3,2505.7,0.27936]
[1728271943136,6.59711,2506.3,2505.7,0.27936]
[1728271943337,6.3178,2506.3,2505.6,4.4108]
[1728271943640,0.27932,2506.2,2505.7,0.81044805]
[1728271943844,6.3178,2506.3,2505.6,3.2078]
[1728271944038,0.27933,2506.1,2505.7,0.53108077]
[1728271944334,6.3178,2506.3,2505.6,0.27938]
[1728271944537,0.27932,2506.2,2505.7,0.81045057]
[1728271944737,1.08632,2506.2,2505.7,0.27937]
[1728271944937,0.3949,2506.1,2505.7,0.27937]
[1728271945536,0.3949,2506.1,2505.5,5.393]
[1728271945537,0.3949,2506.1,2505.8,0.27936]
[1728271945935,0.3949,2506.1,2505.7,0.27936]
[1728271946737,0.3949,2506.1,2505.8,0.53105999]
[1728271947037,0.3949,2506.1,2505.7,0.27936]
[1728271947238,0.3949,2506.1,2505.8,0.53105453]
[1728271947542,0.3949,2506.1,2505.5,8.503]
[1728271947740,0.3949,2506.1,2505.8,0.27935]
[1728271948543,0.3949,2506.1,2505.7,1.2198]
[1728271948744,0.3949,2506.1,2505.9,0.27935]
[1728271948939,0.3949,2506.1,2505.8,0.53103589]
[1728271948940,0.3949,2506.1,2505.8,0.27936]
[1728271949135,0.3949,2506.1,2505.9,0.53104438]
[1728271949441,0.3949,2506.1,2505.8,0.27936]
[1728271949639,0.3949,2506.1,2505.9,0.53103361]
[1728271949837,0.3949,2506.1,2505.8,0.27936]
[1728271951045,0.3949,2506.1,2505.9,0.27935]
[1728271951945,0.3949,2506.1,2505.7,1.2198]
[1728271952143,0.3949,2506.1,2505.8,0.27936]
[1728271954648,0.3949,2506.1,2505.8,0.27935]
[1728271954845,0.3949,2506.1,2505.7,0.8137]
[1728271955043,0.3949,2506.1,2505.9,0.27935]
[1728271956952,0.3949,2506.1,2505.7,0.8137]
[1728271957144,0.3949,2506.1,2505.8,0.27935]
[1728271957447,0.3949,2506.1,2505.9,0.27934]
[1728271959446,0.3949,2506.1,2505.6,3.6073]
[1728271959447,0.3949,2506.1,2505.8,0.27936]
[1728271960450,0.3949,2506.1,2505.7,0.27937]
[1728271960753,0.3949,2506.1,2505.8,0.5314522]
[1728271960946,0.3949,2506.1,2505.6,3.2078]
[1728271961155,0.67423,2506.1,2505.7,1.38186253]
[1728271961346,0.67423,2506.1,2505.8,0.53153679]
[1728271961545,0.3949,2506.1,2505.6,3.2078]
[1728271961747,0.3949,2506.1,2505.7,0.5315388]
[1728271961951,0.3949,2506.1,2505.8,0.5315388]
[1728271962147,0.67423,2506.1,2505.6,3.48718]
[1728271962346,0.67423,2506.1,2505.7,0.53161461]
[1728271962546,1.44,2506.0,2505.8,0.53161461]
[1728271962752,4.92716,2505.9,2505.3,0.8175]
[1728271962958,1.44,2505.5,2505.4,0.53164964]
[1728271963760,3.2078,2505.9,2505.4,0.53164964]
[1728271963950,1.44,2505.8,2505.5,0.27939]
[1728271964357,1.44,2505.8,2505.4,0.2794]
[1728271964655,1.44,2505.8,2505.5,0.53179351]
[1728271964851,1.44,2505.8,2505.4,0.2794]
[1728271965056,1.44,2505.8,2505.5,0.81118242]
[1728271965256,1.44,2505.8,2505.5,0.27939]
[1728271965653,3.2078,2505.9,2505.4,1.71941]
[1728271965654,4.6478,2505.9,2505.4,1.71941]
[1728271965856,4.6478,2505.9,2505.6,0.27938]
[1728271967346,4.6478,2505.9,2505.4,1.44]
[1728271967561,4.6478,2505.9,2505.5,0.81120572]
[1728271967765,4.6478,2505.9,2505.6,0.81119572]
[1728271967956,4.6478,2505.9,2505.6,0.27938]
[1728271968260,4.6478,2505.9,2505.5,0.27939]
[1728271968462,4.6478,2505.9,2505.6,0.53185157]
[1728271968662,4.6478,2505.9,2505.5,0.27939]
[1728271968855,4.6478,2505.9,2505.6,0.92225333]
[1728271969055,4.6478,2505.9,2505.6,0.7721]
[1728271971161,1.71937,2505.7,2505.6,0.7721]
[1728271971660,11.71057,2505.7,2505.6,0.7721]
[1728271973557,5.71057,2505.7,2505.6,0.7721]
[1728271973962,0.2794,2505.5,2505.1,0.27943]
[1728271974163,1.71941,2505.4,2505.1,0.27943]
[1728271974354,0.27941,2505.4,2505.1,0.27943]
[1728271974562,0.27941,2505.4,2505.0,0.27944]
[1728271974755,0.27941,2505.4,2504.7,1.199]
[1728271975062,0.27941,2505.4,2504.8,0.27947]
[1728271975266,0.27941,2505.4,2505.0,0.27944]
[1728271975458,0.27941,2505.4,2505.1,0.27944]
[1728271976366,6.3278,2505.5,2504.7,4.62421611]
[1728271976572,6.24,2505.2,2493.7,8.935]
[1728271976763,3.2078,2504.8,2501.9,1.53014739]
[1728271976965,3.2078,2498.8,2498.6,3.9935966]
[1728271977170,0.28021,2498.3,2498.0,3.09355912]
[1728271977365,0.11424088,2498.0,2497.6,2.69456835]
[1728271977558,0.323,2499.3,2497.6,28.4997686]